bitfinex/quotes_ETHUSD_20241119
["timestamp","ask_amount","ask_price","bid_price","bid_amount"]
[1732042786961,2.87322476,3136.8,3136.7,0.6367]
[1732042787135,2.87322476,3136.8,3136.7,0.3188]
[1732042787636,2.87322476,3136.8,3136.7,0.6367]
[1732042787842,2.87322476,3136.8,3136.7,1.1867]
[1732042789258,2.87322476,3136.8,3136.7,0.3188]
[1732042789460,2.87322476,3136.8,3136.7,0.8738]
[1732042790038,2.87322476,3136.8,3136.7,1.1917]
[1732042790747,2.87322476,3136.8,3136.7,1.9534]
[1732042791567,2.87322476,3137.5,3137.4,0.31873]
[1732042792069,2.87322476,3137.5,3137.4,1.63043]
[1732042792865,2.87322476,3137.5,3137.4,1.94833]
[1732042793731,2.87322476,3137.9,3137.8,0.64159]
[1732042793933,2.87322476,3137.9,3137.8,1.95329]
[1732042796260,2.87322476,3137.9,3137.8,1.19159]
[1732042796832,2.87322476,3137.9,3137.8,0.87369]
[1732042797830,2.87322476,3137.9,3137.8,1.63269]
[1732042798927,4.76e-06,3137.9,3137.8,1.63269]
[1732042799442,0.8007,3139.2,3137.8,1.63269]
[1732042799743,0.8007,3139.2,3138.9,0.31858]
[1732042800070,5.8,3139.1,3138.9,0.31857]
[1732042800368,5.8,3139.1,3139.0,0.86857]
[1732042800731,5.8,3139.5,3139.4,0.31853]
[1732042800995,5.8,3139.5,3139.4,0.86853]
[1732042801127,5.8,3139.5,3139.4,1.66803]
[1732042801527,5.8,3140.0,3139.9,0.31848]
[1732042801830,5.8,3140.2,3140.1,0.86846]
[1732042802362,6.3805,3140.2,3140.1,0.86846]
[1732042802669,5.8,3140.2,3140.1,0.86846]
[1732042805674,5.805,3140.3,3140.1,1.64656]
[1732042805874,0.005,3140.3,3140.2,3.87345]
[1732042806082,0.005,3140.3,3140.2,0.87345]
[1732042806373,0.1405699,3140.6,3140.5,0.87342]
[1732042807675,0.1405699,3140.6,3140.5,1.67602]
[1732042808054,0.1405699,3140.6,3140.5,5.40652474]
[1732042808373,0.1405699,3140.6,3140.5,2.07522983]
[1732042809052,0.1405699,3140.6,3140.5,2.40652474]
[1732042809253,0.1405699,3140.6,3140.5,5.07522983]
[1732042809452,0.1405699,3140.6,3140.5,2.07522983]
[1732042809888,0.1405699,3140.6,3140.5,1.20471491]
[1732042810038,0.1405699,3140.6,3140.4,0.31843]
[1732042810246,5.8,3140.5,3140.1,0.31845]
[1732042810442,0.59405699,3140.4,3140.3,0.31844]
[1732042810787,5.8,3140.5,3140.4,0.31843]
[1732042811641,5.8,3140.5,3140.4,0.86843]
[1732042812042,5.8,3140.5,3140.4,1.70413]
[1732042812667,0.1405699,3140.6,3140.5,3.86842]
[1732042812837,9.9e-06,3140.6,3140.5,2.03972983]
[1732042813038,9.9e-06,3140.6,3140.5,5.68892474]
[1732042814655,9.9e-06,3140.6,3140.5,1.95842]
[1732042816351,9.9e-06,3140.6,3140.5,5.35762983]
[1732042816665,9.9e-06,3140.6,3140.5,1.95842]
[1732042817059,9.9e-06,3140.6,3140.5,0.63632]
[1732042817258,2.6179099,3140.6,3140.5,0.005]
[1732042817444,2.6179099,3140.6,3140.5,0.31842]
[1732042818141,2.6179099,3140.6,3140.5,0.32342]
[1732042818553,2.6179099,3140.6,3140.5,0.87342]
[1732042818789,2.6179099,3140.6,3140.5,0.86842]
[1732042818951,2.6179099,3140.6,3140.5,0.87342]
[1732042819150,2.6179099,3140.6,3140.5,0.86842]
[1732042819507,2.6179099,3140.6,3140.3,0.31843]
[1732042819650,2.6179099,3140.6,3140.5,0.31842]
[1732042820365,3.3943099,3140.6,3140.5,0.31842]
[1732042820589,2.6179099,3140.6,3140.5,0.86842]
[1732042820948,2.6179099,3140.6,3140.5,0.87342]
[1732042821147,2.6179099,3140.6,3140.5,0.86842]
[1732042821992,2.6179099,3140.6,3140.5,0.87342]
[1732042823495,2.6179099,3140.6,3140.5,1.67582]
[1732042823881,9.9e-06,3140.6,3140.5,1.67582]
[1732042824250,9.9e-06,3140.6,3140.5,0.87342]
[1732042824889,9.9e-06,3140.6,3140.5,1.27262983]
[1732042825165,9.9e-06,3140.6,3140.5,2.47249141]
[1732042826611,9.9e-06,3140.6,3140.5,2.07502983]
[1732042826916,9.9e-06,3140.6,3140.5,5.51349141]
[1732042828508,0.33707997,3141.8,3141.7,1.13759]
[1732042828978,0.33707997,3141.8,3141.7,0.78629241]
[1732042829177,0.005,3141.8,3141.7,0.32329]
[1732042829631,0.005,3141.8,3141.7,0.31829]
[1732042830021,0.005,3141.8,3141.7,1.08929]
[1732042830221,0.005,3141.8,3141.7,0.31829]
[1732042830425,0.005,3141.8,3141.7,0.86829]
[1732042830651,0.005,3141.8,3141.7,0.55]
[1732042830966,0.005,3141.8,3141.5,0.55]
[1732042831169,0.005,3141.8,3141.4,0.32332]
[1732042831323,0.005,3141.8,3141.5,0.005]
[1732042831832,0.7681,3141.7,3141.3,0.005]
[1732042832033,2.6179,3141.6,3141.2,0.63624]
[1732042832218,2.6179,3141.6,3141.2,0.3179]
[1732042832737,2.6179,3141.6,3141.2,0.64124]
[1732042833067,2.6179,3141.6,3141.5,0.31831]
[1732042833225,2.6179,3141.6,3141.5,0.86831]
[1732042834049,2.6179,3141.6,3141.5,0.55]
[1732042834453,2.6179,3141.6,3141.5,0.86831]
[1732042835579,2.6179,3141.6,3141.5,0.87331]
[1732042835781,0.005,3141.8,3141.7,0.32329]
[1732042835949,0.005,3141.8,3141.7,0.87329]
[1732042836149,0.005,3141.8,3141.7,0.55]
[1732042836379,0.005,3141.8,3141.7,0.32329]
[1732042836583,0.005,3141.8,3141.7,0.55]
[1732042836754,0.005,3141.8,3141.5,0.8683]
[1732042837474,0.005,3141.8,3141.6,0.3183]
[1732042837673,0.005,3141.8,3141.7,0.86829]
[1732042838095,2.6229,3141.8,3141.6,0.55]
[1732042838379,2.6229,3141.8,3141.5,0.3233]
[1732042838380,2.6179,3141.7,3141.5,0.005]
[1732042838550,3.4279,3141.7,3141.4,0.55]
[1732042838757,3.4279,3141.7,3140.3,0.32843]
[1732042838758,2.6179,3141.6,3141.2,0.005]
[1732042838987,3.4279,3141.5,3140.8,0.31838]
[1732042839139,2.6179,3141.7,3140.9,0.005]
[1732042839339,0.005,3141.8,3141.5,0.005]
[1732042839563,0.005,3141.8,3141.6,0.31829]
[1732042839754,0.005,3141.8,3141.7,0.31829]
[1732042839954,0.005,3141.8,3141.6,0.3183]
[1732042840181,0.005,3141.8,3141.7,0.31829]
[1732042840355,0.005,3141.8,3141.7,0.86829]
[1732042841275,0.005,3141.8,3141.7,0.55]
[1732042841459,0.005,3141.8,3141.6,0.55]
[1732042841664,0.005,3141.8,3141.7,1.66819]
[1732042841963,0.005,3141.8,3141.7,5.64102084]
[1732042843053,2.6229,3141.8,3141.7,0.31829]
[1732042843274,0.005,3141.8,3141.7,1.15469]
[1732042843594,0.005,3141.8,3141.7,2.0743099]
[1732042843798,0.005,3141.8,3141.7,1.95048228]
[1732042844359,0.005,3141.8,3141.7,5.50048228]
[1732042844624,0.33692617,3141.8,3141.7,5.50048228]
[1732042845079,2.44262568,3142.8,3142.7,0.55]
[1732042845282,4.06052568,3142.8,3142.7,0.86819]
[1732042845580,4.46707825,3142.8,3142.5,0.31821]
[1732042847159,4.46707825,3142.8,3142.4,0.005]
[1732042847387,4.06052568,3142.8,3142.7,0.31819]
[1732042847590,4.06052568,3142.8,3142.5,0.31821]
[1732042847753,4.06052568,3142.8,3142.7,0.31819]
[1732042848159,4.06052568,3142.8,3142.5,0.31821]
[1732042848805,4.06052568,3142.8,3142.7,0.86819]
[1732042849794,4.06052568,3142.8,3142.5,0.3182]
[1732042850479,4.06052568,3142.8,3142.7,0.31819]
[1732042851430,4.46707825,3142.8,3142.4,0.31822]
[1732042851723,4.46707825,3142.8,3142.4,0.32322]
[1732042851877,1.6179,3142.7,3142.4,0.32322]
[1732042852078,1.6179,3142.7,3142.5,0.31821]
[1732042852634,1.6179,3142.7,3142.6,0.3182]
[1732042853508,1.6179,3142.7,3142.6,0.8682]
[1732042854283,1.6179,3142.7,3142.6,0.8732]
[1732042854729,2.44262568,3142.8,3142.7,0.86819]
[1732042858310,2.44262568,3142.8,3142.7,2.15098228]
[1732042858626,2.44262568,3142.8,3142.7,0.86819]
[1732042860723,2.44262568,3142.8,3142.7,0.31819]
[1732042860945,2.44262568,3142.8,3142.1,0.8049]
[1732042860946,0.765,3142.6,3141.2,0.07966921]
[1732042861158,0.01,3142.2,3140.7,1.12329]
[1732042861349,3.9478,3141.9,3141.0,0.31836]
[1732042861570,5.61023,3141.8,3140.7,0.31839]
[1732042861862,0.8094,3141.6,3140.4,0.8049]
[1732042862061,0.8094,3141.6,3140.7,0.31839]
[1732042862224,3.193,3141.7,3140.0,0.32846]
[1732042862225,0.754,3141.3,3140.1,0.8098]
[1732042862403,3.18399,3140.8,3139.7,0.8098]
[1732042862747,0.764,3140.9,3139.3,0.8098]
[1732042862748,1.6179,3140.7,3139.3,0.8098]
[1732042862929,0.754,3140.5,3139.5,0.31852]
[1732042863127,3.18442,3140.3,3139.3,0.31853]
[1732042863310,3.18442,3140.3,3139.2,0.31855]
[1732042863311,3.18463,3140.1,3139.1,0.31856]
[1732042863518,3.18472,3140.0,3139.1,0.31856]
[1732042863717,0.01,3140.4,3138.4,0.32862]
[1732042863718,3.18512,3139.6,3138.7,0.3186]
[1732042863917,3.18512,3139.6,3138.4,0.31863]
[1732042863918,3.18533,3139.4,3138.4,0.31863]
[1732042864112,0.754,3139.2,3138.0,0.31867]
[1732042864319,4.80355,3139.1,3137.7,0.31869]
[1732042864659,1.6179,3139.0,3137.4,0.8098]
[1732042864947,1.6179,3139.0,3138.1,0.31866]
[1732042865144,1.6179,3139.0,3138.2,0.31865]
[1732042865358,1.6179,3139.0,3137.5,0.02]
[1732042865522,1.6179,3139.0,3138.9,0.31858]
[1732042865722,1.6179,3139.5,3139.4,0.31853]
[1732042866112,1.6179,3139.5,3139.4,0.86853]
[1732042866408,1.6179,3139.5,3139.4,0.55]
[1732042866603,1.6179,3139.5,3139.4,0.86853]
[1732042867203,1.6179,3139.5,3139.0,0.31857]
[1732042867443,1.6179,3139.5,3139.1,0.55]
[1732042867650,1.6179,3139.5,3139.2,0.31854]
[1732042867811,1.6179,3139.5,3139.3,0.55]
[1732042868017,1.6179,3139.5,3139.3,0.86853]
[1732042868218,1.6179,3139.5,3139.3,0.31854]
[1732042868624,1.6179,3139.5,3139.1,0.55]
[1732042868960,1.6179,3139.5,3139.2,0.55]
[1732042869140,1.6179,3139.5,3138.6,0.7712]
[1732042869141,1.6179,3139.4,3139.3,0.86854]
[1732042869343,1.6179,3139.9,3139.4,0.55]
[1732042869656,1.6179,3139.8,3139.6,0.55]
[1732042869807,1.6179,3139.7,3139.4,0.55]
[1732042870004,1.6179,3140.4,3139.2,0.55]
[1732042870207,1.6179,3140.3,3139.8,0.31849]
[1732042870517,1.6179,3140.2,3139.9,0.31848]
[1732042870707,1.6179,3140.1,3139.9,0.31848]
[1732042870906,1.6179,3140.0,3139.9,0.86848]
[1732042871113,1.6179,3140.4,3140.0,0.31846]
[1732042871525,1.6179,3140.3,3140.2,0.31844]
[1732042871712,1.6179,3140.3,3140.2,0.86844]
[1732042871911,2.3788,3141.0,3140.6,0.3184]
[1732042872167,1.6179,3140.9,3140.7,0.3184]
[1732042872510,3.18314,3141.6,3140.3,0.55]
[1732042872511,0.7609,3141.5,3140.8,0.31839]
[1732042872821,0.7609,3141.5,3141.0,0.31836]
[1732042873022,3.71,3141.4,3140.9,0.55]
[1732042873465,3.71,3141.4,3141.3,0.86833]
[1732042873611,3.71,3141.9,3141.5,0.31831]
[1732042874013,3.71,3142.2,3141.4,1.3128]
[1732042874252,3.71,3142.6,3141.9,0.31827]
[1732042874410,4.11110623,3142.6,3142.0,0.86825]
[1732042874615,4.11110623,3142.6,3141.4,0.7628]
[1732042874616,3.18228,3142.4,3141.8,0.55]
[1732042874866,0.49413062,3142.5,3142.0,0.31825]
[1732042875113,0.46052368,3142.4,3142.1,0.31825]
[1732042875267,3.71,3142.3,3142.1,0.31825]
[1732042875462,4.12705237,3142.3,3142.2,0.31824]
[1732042875660,4.12705237,3142.3,3141.9,0.31826]
[1732042875867,3.71,3142.3,3142.0,0.55]
[1732042876087,3.71,3142.3,3141.9,0.55]
[1732042876372,3.71,3142.3,3141.7,0.31829]
[1732042876373,0.371,3142.2,3141.7,0.31829]
[1732042876873,0.371,3142.2,3141.6,0.55]
[1732042877111,3.55349,3142.2,3141.6,0.8683]
[1732042877319,3.908949,3142.1,3141.6,0.55]
[1732042877467,3.908949,3142.1,3141.4,0.55]
[1732042877811,3.71,3142.0,3141.6,0.8683]
[1732042878005,4.1379949,3142.0,3141.6,0.8683]
[1732042878190,4.1379949,3142.0,3141.3,0.86833]
[1732042878393,0.48643439,3141.9,3141.5,0.55]
[1732042878606,0.48643439,3141.9,3141.5,0.86831]
[1732042878800,3.71,3142.0,3141.7,0.31829]
[1732042879005,3.71,3142.0,3141.5,0.86831]
[1732042879316,3.71,3142.0,3141.9,0.86827]
[1732042880612,3.71,3142.6,3142.3,0.31823]
[1732042880816,3.71,3142.6,3142.5,0.31821]
[1732042881015,4.32526257,3142.6,3142.3,0.31823]
[1732042881374,3.71,3142.5,3142.2,0.86824]
[1732042881613,3.71,3142.5,3142.3,0.31823]
[1732042881975,3.71,3142.5,3142.2,0.55]
[1732042882176,3.71,3142.5,3142.3,0.31823]
[1732042882416,3.71,3142.5,3142.4,0.31822]
[1732042883677,3.71,3142.5,3142.3,0.31823]
[1732042884102,4.081,3142.5,3142.2,0.55]
[1732042884417,3.71,3142.5,3142.4,0.31822]
[1732042884623,3.71,3142.5,3142.3,0.31823]
[1732042884917,3.71,3142.5,3142.4,0.31822]
[1732042885472,3.71,3142.5,3142.3,0.31823]
[1732042885473,3.71,3142.5,3142.1,0.31825]
[1732042885676,0.371,3142.4,3141.9,0.31827]
[1732042885937,0.371,3142.4,3142.0,0.55]
[1732042886153,0.4081,3142.3,3142.1,0.31824]
[1732042886296,3.71,3142.5,3142.0,0.55]
[1732042886648,3.71,3142.5,3142.4,0.31822]
[1732042887135,3.71,3142.7,3142.5,0.31821]
[1732042887294,4.03732257,3142.7,3142.1,0.31825]
[1732042887601,4.03732257,3142.7,3142.2,0.31824]
[1732042887806,0.73055482,3142.6,3142.2,0.31824]
[1732042888431,0.73055482,3142.6,3142.3,0.31823]
[1732042888645,0.73055482,3142.6,3142.5,0.31821]
[1732042889635,0.73055482,3142.6,3142.3,0.31823]
[1732042889848,0.47678774,3142.5,3142.2,0.31823]
[1732042889993,3.71,3142.4,3142.3,0.31822]
[1732042891135,3.71,3142.4,3142.3,0.86822]
[1732042892335,3.71,3142.4,3142.3,0.31822]
[1732042893045,3.71,3142.7,3142.1,0.31824]
[1732042893218,0.93345057,3142.6,3142.1,0.31824]
[1732042893697,4.5291,3142.5,3141.8,0.55]
[1732042893904,3.18243,3142.3,3141.8,0.31828]
[1732042894236,4.5291,3142.5,3141.8,0.31828]
[1732042894432,3.18229,3142.4,3141.8,0.31828]
[1732042894595,3.18269,3142.0,3141.4,0.31832]
[1732042894796,0.771139,3142.3,3140.6,0.3184]
[1732042894797,3.18351,3141.2,3140.6,0.3184]
[1732042894999,3.18371,3141.0,3140.4,0.31842]
[1732042895246,3.18382,3140.9,3140.3,0.31843]
[1732042895447,3.71,3141.1,3140.5,0.31841]
[1732042895661,3.71,3141.1,3140.3,0.31844]
[1732042895662,0.7808,3140.8,3140.3,0.31844]
[1732042895950,3.71,3140.7,3140.2,0.31844]
[1732042896098,3.71,3140.7,3140.3,0.31844]
[1732042896544,3.71,3140.7,3140.1,0.31845]
[1732042897037,3.71,3140.7,3139.8,0.7892]
[1732042897038,3.71,3140.7,3140.6,0.31841]
[1732042897643,3.71,3141.2,3141.1,0.31835]
[1732042897812,3.71,3141.2,3141.1,0.86835]
[1732042898550,3.71,3141.2,3140.9,0.31837]
[1732042898767,3.71,3141.2,3141.1,0.31835]
[1732042899554,3.705,3141.2,3140.7,0.31839]
[1732042899763,3.705,3141.2,3140.9,0.31837]
[1732042900051,3.184,3140.7,3140.4,0.55]
[1732042900266,3.705,3141.2,3140.1,0.8006]
[1732042900267,3.695,3140.6,3140.1,0.8006]
[1732042900563,3.18433,3140.4,3139.7,0.8006]
[1732042900710,3.695,3140.3,3139.7,0.8006]
[1732042901121,3.695,3140.3,3139.7,1.1191]
[1732042901324,3.695,3140.3,3140.1,0.31845]
[1732042901526,3.695,3140.3,3139.8,0.31849]
[1732042901721,3.695,3140.3,3139.9,0.31847]
[1732042902181,3.695,3140.3,3139.8,0.31848]
[1732042902324,3.695,3140.3,3139.7,0.8006]
[1732042902325,3.695,3140.3,3140.1,0.31845]
[1732042902527,3.695,3140.3,3140.2,0.31845]
[1732042904066,3.695,3140.3,3140.0,0.31846]
[1732042904236,4.0645,3140.3,3139.8,0.55]
[1732042904438,0.81,3140.2,3139.8,0.55]
[1732042904670,3.695,3140.1,3139.7,1.59245]
[1732042905227,4.1455,3140.1,3139.3,1.59268]
[1732042905875,3.695,3140.0,3139.4,1.59262]
[1732042906034,0.41455,3139.9,3139.4,1.59262]
[1732042906367,0.8149,3139.7,3138.9,3.18577]
[1732042906573,7.34211,3139.6,3138.9,1.59287]
[1732042906773,3.695,3139.5,3139.0,1.59285]
[1732042906923,0.3705,3139.4,3139.0,1.59285]
[1732042907128,3.695,3139.3,3138.9,1.59288]
[1732042907324,3.695,3139.3,3138.8,1.59295]
[1732042907568,3.695,3139.3,3139.0,1.59286]
[1732042907768,3.695,3139.3,3138.8,1.59293]
[1732042907929,4.0645,3139.3,3138.9,1.59288]
[1732042908345,0.8008,3139.2,3138.7,1.59298]
[1732042908574,1.28733,3139.2,3138.7,1.59298]
[1732042908931,1.28733,3139.2,3138.8,1.59294]
[1732042909269,1.28733,3139.2,3138.3,1.59317]
[1732042909270,2.9662,3139.1,3138.3,1.59317]
[1732042909470,3.1859,3138.9,3138.1,1.59328]
[1732042909685,3.695,3138.8,3138.0,1.59333]
[1732042909975,3.695,3138.8,3138.1,1.5933]
[1732042910133,3.695,3138.8,3138.3,1.59318]
[1732042910772,3.695,3138.8,3138.1,1.59331]
[1732042910935,4.383072,3138.8,3138.1,1.59331]
[1732042911366,7.569012,3138.8,3138.0,3.0]
[1732042911576,7.569062,3138.8,3137.9,1.5934]
[1732042911758,7.0551862,3138.7,3137.9,1.5934]
[1732042911932,3.695,3137.6,3135.7,1.283138]
[1732042912136,0.7675,3137.3,3135.8,1.59446]
[1732042912394,2.7936,3136.9,3136.1,1.59431]
[1732042912593,3.18785,3137.0,3135.8,1.59444]
[1732042912594,0.7675,3136.6,3135.8,1.59444]
[1732042912767,0.7675,3136.6,3135.4,0.7906]
[1732042912965,0.7675,3136.6,3135.5,1.59464]
[1732042912966,3.695,3136.5,3135.5,1.59464]
[1732042913218,0.7675,3136.6,3135.5,1.59464]
[1732042913219,3.695,3136.4,3135.5,1.59464]
[1732042913379,2.7936,3136.3,3135.3,1.59473]
[1732042913569,2.7936,3136.3,3134.8,2.38559]
[1732042913570,4.5038,3136.2,3134.8,2.38555]
[1732042913887,4.5138,3136.2,3135.6,1.59457]
[1732042914060,4.5138,3136.2,3134.8,0.7906]
[1732042914257,0.01,3136.0,3134.4,0.8028]
[1732042914572,0.8088,3135.8,3134.4,0.8028]
[1732042914977,0.8088,3135.8,3135.2,2.23266]
[1732042915301,3.695,3135.7,3135.3,2.23262]
[1732042915773,3.695,3135.7,3134.4,3.03604]
[1732042916114,0.8088,3135.8,3133.8,2.23366]
[1732042916115,3.705,3135.6,3134.6,2.23312]
[1732042916315,0.7857,3135.2,3134.6,2.23312]
[1732042916467,0.7857,3135.2,3134.3,2.23328]
[1732042916468,0.15780163,3135.2,3134.9,2.23291]
[1732042916661,0.15780163,3135.2,3135.0,2.23285]
[1732042916861,0.15780163,3135.2,3134.0,2.23351]
[1732042917089,0.15780163,3135.2,3133.5,3.02771]
[1732042917090,3.695,3135.1,3135.0,2.23285]
[1732042917309,4.08028016,3135.1,3134.9,2.23291]
[1732042917507,3.695,3135.1,3134.9,2.23291]
[1732042917710,3.695,3135.1,3135.0,2.23285]
[1732042917925,3.695,3135.1,3134.9,2.23288]
[1732042918084,3.695,3135.0,3134.9,2.23288]
[1732042918429,1.46212,3134.9,3134.8,2.23299]
[1732042918639,0.01,3135.2,3133.4,0.7743]
[1732042918786,0.01,3135.0,3134.0,2.2335]
[1732042919121,1.47,3135.1,3134.2,2.23338]
[1732042919122,0.01,3134.7,3134.2,2.23338]
[1732042919415,1.47,3134.6,3134.1,2.23349]
[1732042919715,0.788,3134.5,3134.4,2.23328]
[1732042920414,1.47,3134.6,3134.5,2.23321]
[1732042920870,1.47,3134.6,3134.4,2.23328]
[1732042921073,1.48,3134.6,3134.0,2.23351]
[1732042921274,0.788,3134.5,3133.8,2.23369]
[1732042921506,0.01,3134.1,3133.7,2.23376]
[1732042921719,0.788,3134.0,3133.9,2.23363]
[1732042922019,2.258,3134.0,3132.5,0.7743]
[1732042922234,1.7068,3133.9,3132.7,2.23449]
[1732042922515,1.7068,3133.9,3133.5,2.23386]
[1732042922716,1.7068,3133.9,3132.5,0.7743]
[1732042922717,1.47,3133.8,3133.7,2.23378]
[1732042922925,1.47,3133.8,3132.8,2.23436]
[1732042923091,1.47,3133.7,3132.8,2.23436]
[1732042923305,1.47,3133.7,3133.6,2.23385]
[1732042923621,1.47,3133.9,3133.8,2.2337]
[1732042923988,1.47,3133.9,3132.1,0.8166]
[1732042924186,1.47,3133.9,3133.8,1.2764]
[1732042924825,1.47,3133.9,3133.8,1.8264]
[1732042925326,1.47,3134.9,3134.8,1.27599]
[1732042925787,1.47,3134.9,3134.6,1.27607]
[1732042925991,0.22628,3134.8,3134.7,1.27603]
[1732042926191,0.7928,3135.0,3134.9,1.27595]
[1732042926506,0.7928,3135.0,3134.0,0.7699]
[1732042926688,1.47,3134.9,3134.4,1.27613]
[1732042927026,0.7928,3134.7,3133.1,2.04655]
[1732042927212,0.7928,3134.7,3134.5,1.27608]
[1732042927213,1.47,3134.6,3134.5,1.27608]
[1732042927441,4.720008,3134.6,3134.3,1.27617]
[1732042927818,4.720008,3134.6,3134.5,1.27612]
[1732042928224,0.7786,3134.3,3133.6,1.27645]
[1732042928404,1.48,3134.2,3132.7,0.7709]
[1732042928728,1.69686,3134.1,3133.8,1.2764]
[1732042928890,1.47,3134.0,3133.6,1.27644]
[1732042929090,0.169686,3133.9,3133.6,1.27644]
[1732042929298,2.2486,3133.8,3133.2,1.27664]
[1732042929600,4.47,3133.7,3133.0,1.27673]
[1732042929860,0.7822,3133.4,3132.9,1.27675]
[1732042929987,4.47,3133.6,3132.7,1.27685]
[1732042929988,0.01,3133.2,3132.7,1.27685]
[1732042930344,2.2422,3133.1,3132.5,1.27693]
[1732042930490,1.69522,3133.0,3132.7,1.27683]
[1732042930829,0.7722,3132.8,3132.4,1.27695]
[1732042931130,1.47,3132.7,3132.6,1.27689]
[1732042931335,1.48,3132.7,3131.6,1.2773]
[1732042931533,0.7703,3132.5,3131.9,1.27714]
[1732042931842,1.47,3132.4,3131.8,1.2772]
[1732042931992,1.47,3132.4,3131.9,1.27716]
[1732042932193,1.47,3132.4,3132.0,1.2771]
[1732042932194,0.52503,3132.3,3132.0,1.2771]
[1732042932411,4.47,3132.4,3132.0,1.2771]
[1732042932412,1.47,3132.4,3132.0,1.2771]
[1732042932653,1.47,3132.4,3132.2,1.27702]
[1732042933009,1.47,3132.4,3131.9,1.27714]
[1732042933208,0.52403,3132.3,3131.8,1.2772]
[1732042933520,0.52403,3132.3,3131.7,1.27724]
[1732042933693,2.2519,3132.2,3131.7,1.27724]
[1732042933890,0.277593,3132.1,3131.7,1.27724]
[1732042934093,1.47,3132.0,3131.9,1.27716]
[1732042934338,0.19284,3131.9,3131.8,0.95791]
[1732042934835,0.19284,3131.9,3131.8,1.50791]
[1732042935046,0.19,3132.0,3131.9,1.50788]
[1732042935815,0.7962,3133.1,3133.0,0.95754]
[1732042936214,0.7962,3133.1,3132.8,0.95758]
[1732042936421,0.7962,3133.1,3133.0,0.95754]
[1732042936621,0.0148203,3133.2,3133.1,0.95751]
[1732042936947,0.0148203,3133.2,3133.0,0.95754]
[1732042937101,0.0148203,3133.2,3132.5,0.95769]
[1732042937102,0.7728,3133.1,3132.5,0.95769]
[1732042937438,0.7728,3133.1,3131.9,0.95785]
[1732042937439,0.39792503,3133.0,3132.8,0.9576]
[1732042937606,3.19224,3132.6,3131.4,0.1405699]
[1732042937810,3.19246,3132.4,3131.8,0.9579]
[1732042938128,3.19275,3132.1,3131.4,1.0985799]
[1732042938330,0.7728,3131.9,3131.4,1.0985799]
[1732042938633,0.7728,3131.9,3131.6,0.95797]
[1732042938841,0.7728,3131.9,3131.4,1.0985799]
[1732042939550,3.20315,3131.7,3131.4,0.1405699]
[1732042939909,3.19327,3131.6,3131.4,0.1405699]
[1732042940359,0.8145,3131.1,3130.6,0.95828]
[1732042940716,0.8145,3131.1,3130.4,0.95832]
[1732042940717,4.00834,3131.1,3130.4,0.95832]
[1732042940915,4.00834,3131.1,3130.4,0.95834]
[1732042940916,3.19387,3131.0,3130.4,0.95834]
[1732042941127,0.720208,3131.0,3130.0,0.95845]
[1732042941331,3.19399,3130.9,3130.2,0.95839]
[1732042941654,0.01,3130.9,3130.5,0.95831]
[1732042941860,0.39245,3130.9,3130.2,0.95838]
[1732042942013,3.58642,3130.9,3130.2,0.95838]
[1732042942216,0.7629,3130.5,3129.9,0.95847]
[1732042942617,3.95727,3130.5,3129.7,0.95854]
[1732042942942,0.7629,3130.5,3130.0,0.95844]
[1732042943118,1.45961,3130.5,3130.0,0.95844]
[1732042943316,1.45961,3130.5,3129.3,0.95868]
[1732042943512,0.7629,3130.5,3130.2,0.9584]
[1732042943749,3.0,3131.2,3130.1,0.95841]
[1732042943950,3.19418,3130.7,3130.0,0.95846]
[1732042944172,3.19418,3130.7,3129.2,0.7927]
[1732042944173,3.19495,3130.0,3129.1,0.95872]
[1732042944460,3.19486,3130.1,3129.0,0.01]
[1732042944660,3.19497,3130.0,3129.1,0.95874]
[1732042944818,3.19492,3130.0,3129.3,0.95867]
[1732042945022,0.319497,3129.9,3129.6,0.95858]
[1732042945350,3.19498,3130.0,3129.0,0.01]
[1732042945521,0.319498,3129.9,3129.2,0.95869]
[1732042945716,0.319498,3129.9,3129.3,0.95865]
[1732042946122,3.19518,3129.8,3128.8,0.01]
[1732042946352,3.19518,3129.8,3129.1,0.95871]
[1732042946596,3.0,3130.3,3129.0,0.97877]
[1732042946755,3.0,3130.9,3129.1,0.95874]
[1732042946756,3.19498,3130.0,3129.1,0.95874]
[1732042946942,3.19497,3130.0,3129.2,0.95868]
[1732042947139,3.48026,3129.9,3128.7,0.01]
[1732042947393,3.1951,3129.8,3129.0,0.95875]
[1732042947555,3.1953,3129.6,3128.8,0.95881]
[1732042947741,0.2852,3129.6,3128.6,0.95888]
[1732042947948,3.1957,3129.3,3128.6,0.95888]
[1732042948178,3.1957,3129.3,3128.4,0.95895]
[1732042948179,0.2852,3129.1,3128.4,0.95895]
[1732042948383,3.48109,3129.1,3128.4,0.95895]
[1732042948679,0.2852,3129.1,3128.5,0.95892]
[1732042948877,0.2852,3129.1,3128.3,0.1405699]
[1732042949085,0.2852,3129.1,3128.7,0.95884]
[1732042949391,0.2852,3129.1,3128.8,0.95881]
[1732042949544,3.19387,3131.0,3129.3,0.95866]
[1732042949545,0.2852,3129.8,3129.3,0.95866]
[1732042950038,0.33179961,3129.7,3129.2,0.9587]